[Event "Live Chess"]
[Site "Chess.com"]
[Date "2024.06.02"]
[Round "-"]
[White "Crowded_House"]
[Black "mychess51"]
[Result "0-1"]
[WhiteElo "1630"]
[BlackElo "1734"]
[TimeControl "300"]
[EndTime "8:57:16 PDT"]
[Termination "mychess51 won by checkmate"]

1. d4 {[%clk 0:04:58]} 1... e6 {[%clk 0:04:59.4]} 2. Nf3 {[%clk 0:04:55.6]} 2...
d5 {[%clk 0:04:58.9]} 3. Bg5 {[%clk 0:04:54.6]} 3... Nf6 {[%clk 0:04:58.1]} 4.
e3 {[%clk 0:04:53]} 4... Be7 {[%clk 0:04:57.4]} 5. Bd3 {[%clk 0:04:52.1]} 5...
h6 {[%clk 0:04:56.2]} 6. Bh4 {[%clk 0:04:50.6]} 6... c5 {[%clk 0:04:55.4]} 7. c3
{[%clk 0:04:49.6]} 7... Nc6 {[%clk 0:04:54.6]} 8. Nbd2 {[%clk 0:04:47.3]} 8...
Qb6 {[%clk 0:04:53.4]} 9. b3 {[%clk 0:04:43.2]} 9... O-O {[%clk 0:04:49.5]} 10.
O-O {[%clk 0:04:41.1]} 10... Ng4 {[%clk 0:04:48.2]} 11. Bxe7 {[%clk 0:04:39.3]}
11... Nxe7 {[%clk 0:04:46.3]} 12. h3 {[%clk 0:04:38.6]} 12... Nf6 {[%clk
0:04:44.8]} 13. dxc5 {[%clk 0:04:37.5]} 13... Qxc5 {[%clk 0:04:43.2]} 14. Rc1
{[%clk 0:04:32.3]} 14... Nc6 {[%clk 0:04:34]} 15. b4 {[%clk 0:04:30]} 15... Qd6
{[%clk 0:04:31.1]} 16. Nd4 {[%clk 0:04:24]} 16... Ne5 {[%clk 0:04:28.1]} 17. Nb5
{[%clk 0:04:22.6]} 17... Qd7 {[%clk 0:04:26.3]} 18. Be2 {[%clk 0:04:21.1]} 18...
a6 {[%clk 0:04:24.9]} 19. Nd4 {[%clk 0:04:20]} 19... b5 {[%clk 0:04:23]} 20.
N4f3 {[%clk 0:04:18.2]} 20... Nc4 {[%clk 0:04:21.5]} 21. Nxc4 {[%clk 0:04:12.1]}
21... bxc4 {[%clk 0:04:20.6]} 22. Ne5 {[%clk 0:04:03.4]} 22... Qe8 {[%clk
0:04:12.7]} 23. Qc2 {[%clk 0:03:56.4]} 23... a5 {[%clk 0:04:11.6]} 24. a3 {[%clk
0:03:51.7]} 24... axb4 {[%clk 0:04:10.4]} 25. axb4 {[%clk 0:03:51.3]} 25... Bb7
{[%clk 0:04:06.4]} 26. Ra1 {[%clk 0:03:49.3]} 26... Qe7 {[%clk 0:04:03.6]} 27.
Qb2 {[%clk 0:03:46.4]} 27... Qc7 {[%clk 0:04:01.3]} 28. Nf3 {[%clk 0:03:40.1]}
28... Ne4 {[%clk 0:03:59]} 29. Rxa8 {[%clk 0:03:31.5]} 29... Rxa8 {[%clk
0:03:56.8]} 30. Ra1 {[%clk 0:03:29.9]} 30... Qb8 {[%clk 0:03:54.8]} 31. Rxa8
{[%clk 0:03:25.8]} 31... Qxa8 {[%clk 0:03:51.4]} 32. Nd2 {[%clk 0:03:24.9]}
32... f5 {[%clk 0:03:47.4]} 33. Nxe4 {[%clk 0:03:23.7]} 33... fxe4 {[%clk
0:03:46.3]} 34. f3 {[%clk 0:03:22.3]} 34... exf3 {[%clk 0:03:42.5]} 35. Bxf3
{[%clk 0:03:20]} 35... Qa4 {[%clk 0:03:26.1]} 36. Kf2 {[%clk 0:03:15.2]} 36...
Kf7 {[%clk 0:03:14.6]} 37. Ke2 {[%clk 0:03:06.3]} 37... Ke7 {[%clk 0:03:13.2]}
38. Kd2 {[%clk 0:03:04.3]} 38... Kd6 {[%clk 0:03:12.1]} 39. Kc1 {[%clk
0:03:00.1]} 39... Qa7 {[%clk 0:03:10.9]} 40. Kb1 {[%clk 0:02:55.8]} 40... Qxe3
{[%clk 0:03:08.9]} 41. Qa3 {[%clk 0:02:46.7]} 41... Qb6 {[%clk 0:02:58.7]} 42.
Qa5 {[%clk 0:02:40.2]} 42... Qxa5 {[%clk 0:02:56.8]} 43. bxa5 {[%clk 0:02:39.7]}
43... Kc5 {[%clk 0:02:55.9]} 44. Bg4 {[%clk 0:02:34.4]} 44... e5 {[%clk
0:02:52.9]} 45. Kc2 {[%clk 0:02:31.7]} 45... Kb5 {[%clk 0:02:50.9]} 46. Be6
{[%clk 0:02:27.6]} 46... Kxa5 {[%clk 0:02:49.2]} 47. g3 {[%clk 0:02:26.7]} 47...
Kb5 {[%clk 0:02:48.3]} 48. h4 {[%clk 0:02:25.8]} 48... Kc5 {[%clk 0:02:47.5]}
49. Bf7 {[%clk 0:02:24.3]} 49... d4 {[%clk 0:02:46.6]} 50. cxd4+ {[%clk
0:02:23.5]} 50... exd4 {[%clk 0:02:44.9]} 51. Be6 {[%clk 0:02:22]} 51... Be4+
{[%clk 0:02:43]} 52. Kd2 {[%clk 0:02:20.8]} 52... c3+ {[%clk 0:02:41.8]} 53. Kc1
{[%clk 0:02:19.5]} 53... d3 {[%clk 0:02:39.9]} 54. Bb3 {[%clk 0:02:11]} 54...
Kd4 {[%clk 0:02:37.9]} 55. g4 {[%clk 0:02:07.5]} 55... Ke3 {[%clk 0:02:35.4]}
56. Kd1 {[%clk 0:02:06.6]} 56... Kf4 {[%clk 0:02:31]} 57. g5 {[%clk 0:02:05.1]}
57... hxg5 {[%clk 0:02:30.2]} 58. hxg5 {[%clk 0:02:04.3]} 58... Kxg5 {[%clk
0:02:29.2]} 59. Bf7 {[%clk 0:02:01.5]} 59... Kf4 {[%clk 0:02:27.1]} 60. Bh5
{[%clk 0:01:59.2]} 60... g5 {[%clk 0:02:25.7]} 61. Bf7 {[%clk 0:01:56.3]} 61...
g4 {[%clk 0:02:24.3]} 62. Bh5 {[%clk 0:01:54.9]} 62... g3 {[%clk 0:02:23.3]} 63.
Bg6 {[%clk 0:01:54.5]} 63... g2 {[%clk 0:02:17.7]} 64. Bxe4 {[%clk 0:01:52.6]}
64... g1=Q# {[%clk 0:02:15.7]} 0-1

[Event "Live Chess"]
[Site "Chess.com"]
[Date "2024.06.02"]
[Round "-"]
[White "bobby_jamesFischer86"]
[Black "FREDERICKtheMATE"]
[Result "0-1"]
[WhiteElo "1630"]
[BlackElo "2663"]
[TimeControl "300"]
[EndTime "8:57:26 PDT"]
[Termination "FREDERICKtheMATE won by resignation"]

1. d4 {[%clk 0:04:52.6]} 1... d5 {[%clk 0:04:58.8]} 2. c4 {[%clk 0:04:51.3]}
2... c6 {[%clk 0:04:58.3]} 3. Nc3 {[%clk 0:04:50]} 3... Nf6 {[%clk 0:04:57.8]}
4. cxd5 {[%clk 0:04:49.2]} 4... cxd5 {[%clk 0:04:57.7]} 5. e3 {[%clk 0:04:47.9]}
5... Nc6 {[%clk 0:04:56.9]} 6. Nf3 {[%clk 0:04:37.8]} 6... Bg4 {[%clk
0:04:55.6]} 7. Be2 {[%clk 0:04:33.8]} 7... e6 {[%clk 0:04:54.1]} 8. Kf1 {[%clk
0:04:26.2]} 8... Bd6 {[%clk 0:04:49.7]} 9. h3 {[%clk 0:04:24.5]} 9... Bxf3
{[%clk 0:04:48.5]} 10. Bxf3 {[%clk 0:04:23.1]} 10... O-O {[%clk 0:04:48.1]} 11.
Ke2 {[%clk 0:04:21.8]} 11... Rc8 {[%clk 0:04:44.1]} 12. Re1 {[%clk 0:04:16.6]}
12... Bb4 {[%clk 0:04:40.4]} 13. Bd2 {[%clk 0:04:11.9]} 13... Na5 {[%clk
0:04:38.2]} 14. a3 {[%clk 0:04:08.9]} 14... Bxc3 {[%clk 0:04:36.7]} 15. Bxc3
{[%clk 0:04:07.6]} 15... Nc4 {[%clk 0:04:36]} 16. Kf1 {[%clk 0:04:05.8]} 16...
Qb6 {[%clk 0:04:34.6]} 17. Rc1 {[%clk 0:03:59.5]} 17... Nxb2 {[%clk 0:04:30.7]}
18. Bxb2 {[%clk 0:03:17.1]} 18... Qxb2 {[%clk 0:04:28.8]} 19. Qa4 {[%clk
0:03:12.7]} 19... Rxc1 {[%clk 0:04:26.1]} 20. Rxc1 {[%clk 0:02:51.2]} 20...
Qxc1+ {[%clk 0:04:26]} 0-1

[Event "Live Chess"]
[Site "Chess.com"]
[Date "2024.06.02"]
[Round "-"]
[White "ShanthamGrarks"]
[Black "Pandreq"]
[Result "1-0"]
[WhiteElo "1902"]
[BlackElo "1223"]
[TimeControl "300"]
[EndTime "8:57:35 PDT"]
[Termination "ShanthamGrarks won by resignation"]

1. d4 {[%clk 0:04:57.1]} 1... d5 {[%clk 0:04:58.8]} 2. Nc3 {[%clk 0:04:54.4]}
2... c6 {[%clk 0:04:58.1]} 3. e4 {[%clk 0:04:53.7]} 3... Nf6 {[%clk 0:04:57.1]}
4. e5 {[%clk 0:04:52]} 4... Nfd7 {[%clk 0:04:54.7]} 5. Bg5 {[%clk 0:04:51.5]}
5... Nb6 {[%clk 0:04:47.6]} 6. f4 {[%clk 0:04:48.9]} 6... h6 {[%clk 0:04:46.5]}
7. Bh4 {[%clk 0:04:47.5]} 7... Bf5 {[%clk 0:04:41.1]} 8. Bd3 {[%clk 0:04:46.5]}
8... Qd7 {[%clk 0:04:38.1]} 9. Nf3 {[%clk 0:04:45]} 9... Bxd3 {[%clk 0:04:36.8]}
10. Qxd3 {[%clk 0:04:43.2]} 10... Qg4 {[%clk 0:04:36]} 11. O-O {[%clk
0:04:25.1]} 11... Qxf4 {[%clk 0:04:24.1]} 12. e6 {[%clk 0:04:23.7]} 12... f5
{[%clk 0:04:09.4]} 13. Bg3 {[%clk 0:04:17.7]} 13... Qg4 {[%clk 0:04:01.9]} 14.
Ne5 {[%clk 0:04:16.2]} 14... Qg5 {[%clk 0:03:47]} 15. Rxf5 {[%clk 0:04:11.5]}
15... Qxf5 {[%clk 0:03:18.1]} 16. Qxf5 {[%clk 0:04:09.5]} 1-0

[Event "Live Chess"]
[Site "Chess.com"]
[Date "2024.06.02"]
[Round "-"]
[White "Hoogleboogle"]
[Black "MaximKovalenko83"]
[Result "0-1"]
[WhiteElo "1194"]
[BlackElo "2189"]
[TimeControl "300"]
[EndTime "8:57:43 PDT"]
[Termination "MaximKovalenko83 won by checkmate"]

1. d4 {[%clk 0:04:55.3]} 1... c6 {[%clk 0:04:59.9]} 2. c4 {[%clk 0:04:53.3]}
2... d5 {[%clk 0:04:58.7]} 3. Nc3 {[%clk 0:04:51.3]} 3... dxc4 {[%clk
0:04:57.4]} 4. e4 {[%clk 0:04:49.5]} 4... e5 {[%clk 0:04:56]} 5. Bxc4 {[%clk
0:04:48.8]} 5... exd4 {[%clk 0:04:55.1]} 6. Nce2 {[%clk 0:04:44.4]} 6... c5
{[%clk 0:04:53.3]} 7. Nf4 {[%clk 0:04:41.4]} 7... Nf6 {[%clk 0:04:48]} 8. Nd3
{[%clk 0:04:40.8]} 8... Nxe4 {[%clk 0:04:44.2]} 9. f3 {[%clk 0:04:35.5]} 9...
Qh4+ {[%clk 0:04:39.6]} 10. g3 {[%clk 0:04:17]} 10... Nxg3 {[%clk 0:04:37.8]}
11. hxg3 {[%clk 0:04:08]} 11... Qxh1 {[%clk 0:04:35.7]} 12. Qe2+ {[%clk
0:04:06.6]} 12... Be7 {[%clk 0:04:34.2]} 13. Qf2 {[%clk 0:03:42.6]} 13... Nc6
{[%clk 0:04:31.1]} 14. Bf4 {[%clk 0:03:41.4]} 14... O-O {[%clk 0:04:28.4]} 15.
Ne5 {[%clk 0:03:31.7]} 15... Nxe5 {[%clk 0:04:26]} 16. Bxe5 {[%clk 0:03:30.5]}
16... Be6 {[%clk 0:04:24.6]} 17. Bxe6 {[%clk 0:03:28.5]} 17... fxe6 {[%clk
0:04:24.5]} 18. f4 {[%clk 0:03:26.4]} 18... Qe4+ {[%clk 0:04:19.3]} 19. Ne2
{[%clk 0:03:23.2]} 19... d3 {[%clk 0:04:13.6]} 20. Kd2 {[%clk 0:03:16.2]} 20...
dxe2 {[%clk 0:04:12]} 21. Qxe2 {[%clk 0:03:15]} 21... Rad8+ {[%clk 0:04:09.8]}
22. Ke1 {[%clk 0:03:07.7]} 22... Qh1+ {[%clk 0:04:07]} 23. Qf1 {[%clk
0:03:05.5]} 23... Qh2 {[%clk 0:04:05.7]} 24. Rd1 {[%clk 0:02:57.5]} 24... Qxg3+
{[%clk 0:04:03.5]} 25. Qf2 {[%clk 0:02:42.8]} 25... Rxd1+ {[%clk 0:04:01.3]} 26.
Ke2 {[%clk 0:02:40.2]} 26... Rd2+ {[%clk 0:04:00]} 27. Ke1 {[%clk 0:02:37.2]}
27... Qxf2# {[%clk 0:03:59.9]} 0-1

[Event "Live Chess"]
[Site "Chess.com"]
[Date "2024.06.02"]
[Round "-"]
[White "JanMur7"]
[Black "E2E4colchester"]
[Result "1-0"]
[WhiteElo "2264"]
[BlackElo "1003"]
[TimeControl "300"]
[EndTime "8:57:48 PDT"]
[Termination "JanMur7 won by checkmate"]

1. e4 {[%clk 0:04:58]} 1... c5 {[%clk 0:04:58.7]} 2. Nf3 {[%clk 0:04:57]} 2...
Nc6 {[%clk 0:04:57.9]} 3. c3 {[%clk 0:04:56.1]} 3... e5 {[%clk 0:04:57]} 4. d4
{[%clk 0:04:55.2]} 4... Nf6 {[%clk 0:04:56.3]} 5. d5 {[%clk 0:04:53.1]} 5... Ne7
{[%clk 0:04:53]} 6. d6 {[%clk 0:04:51.1]} 6... Nc6 {[%clk 0:04:52.1]} 7. Na3
{[%clk 0:04:47.8]} 7... a6 {[%clk 0:04:48.9]} 8. Nc4 {[%clk 0:04:43.8]} 8... b5
{[%clk 0:04:45.9]} 9. Ncxe5 {[%clk 0:04:42.4]} 9... g6 {[%clk 0:04:35.2]} 10.
Nxc6 {[%clk 0:04:37.2]} 10... dxc6 {[%clk 0:04:32.9]} 11. e5 {[%clk 0:04:36.8]}
11... Be6 {[%clk 0:04:30.3]} 12. exf6 {[%clk 0:04:35]} 12... Bxd6 {[%clk
0:04:27.3]} 13. Bh6 {[%clk 0:04:30.3]} 13... Kd7 {[%clk 0:04:26]} 14. Bf4 {[%clk
0:04:28]} 14... Kc8 {[%clk 0:04:20.4]} 15. Qxd6 {[%clk 0:04:27.2]} 15... Qxd6
{[%clk 0:04:19.3]} 16. Bxd6 {[%clk 0:04:27.1]} 16... Bxa2 {[%clk 0:04:16.6]} 17.
Rxa2 {[%clk 0:04:25.5]} 17... Rf8 {[%clk 0:04:15]} 18. Bxf8 {[%clk 0:04:23.8]}
18... Kd7 {[%clk 0:04:13]} 19. Bxc5 {[%clk 0:04:22.8]} 19... Ke6 {[%clk
0:04:11.4]} 20. Ra1 {[%clk 0:04:22.2]} 20... Rf8 {[%clk 0:04:10.6]} 21. Rd1
{[%clk 0:04:21.5]} 21... Rd8 {[%clk 0:04:08.6]} 22. Rxd8 {[%clk 0:04:20.3]}
22... Kxf6 {[%clk 0:04:05.6]} 23. Bd4+ {[%clk 0:04:17]} 23... Ke6 {[%clk
0:04:04.2]} 24. Bc4+ {[%clk 0:04:15.6]} 24... Kf5 {[%clk 0:04:02.3]} 25. Kd2
{[%clk 0:04:10.8]} 25... Kf4 {[%clk 0:04:00.5]} 26. Re1 {[%clk 0:04:09.6]} 26...
Kf5 {[%clk 0:03:58.9]} 27. Rde8 {[%clk 0:04:07.6]} 27... Kf4 {[%clk 0:03:57.7]}
28. R8e5 {[%clk 0:04:06.9]} 28... bxc4 {[%clk 0:03:56.5]} 29. R1e4# {[%clk
0:04:05.9]} 1-0

[Event "Live Chess"]
[Site "Chess.com"]
[Date "2024.06.02"]
[Round "-"]
[White "willc-h99"]
[Black "best137"]
[Result "1-0"]
[WhiteElo "2546"]
[BlackElo "1535"]
[TimeControl "300"]
[EndTime "8:58:19 PDT"]
[Termination "willc-h99 won on time"]

1. e3 {[%clk 0:04:57.3]} 1... d5 {[%clk 0:04:57.8]} 2. b3 {[%clk 0:04:56.4]}
2... Nf6 {[%clk 0:04:56.1]} 3. Bb2 {[%clk 0:04:55.8]} 3... g6 {[%clk 0:04:55]}
4. f4 {[%clk 0:04:55]} 4... Bg7 {[%clk 0:04:54.1]} 5. Nf3 {[%clk 0:04:54.6]}
5... O-O {[%clk 0:04:53.3]} 6. Be2 {[%clk 0:04:54.1]} 6... Bg4 {[%clk 0:04:52]}
7. h3 {[%clk 0:04:52.6]} 7... Bxf3 {[%clk 0:04:47.8]} 8. Bxf3 {[%clk 0:04:52.5]}
8... e6 {[%clk 0:04:44.2]} 9. O-O {[%clk 0:04:51.4]} 9... Nc6 {[%clk 0:04:43.1]}
10. d3 {[%clk 0:04:48.6]} 10... a5 {[%clk 0:04:35.9]} 11. a3 {[%clk 0:04:44.2]}
11... Re8 {[%clk 0:04:27.1]} 12. d4 {[%clk 0:04:38.1]} 12... a4 {[%clk
0:04:02.4]} 13. Nd2 {[%clk 0:04:31.1]} 13... Na5 {[%clk 0:03:37.2]} 14. b4
{[%clk 0:04:27.3]} 14... Nc4 {[%clk 0:03:30.4]} 15. Nxc4 {[%clk 0:04:26.2]}
15... dxc4 {[%clk 0:03:30.3]} 16. Bxb7 {[%clk 0:04:25]} 16... Rb8 {[%clk
0:03:24.9]} 17. Bc6 {[%clk 0:04:24.3]} 17... Rf8 {[%clk 0:03:13.9]} 18. Bxa4
{[%clk 0:04:21.1]} 18... Ne4 {[%clk 0:03:01.3]} 19. Bc6 {[%clk 0:04:17]} 19...
Ng3 {[%clk 0:02:32.7]} 20. Rf3 {[%clk 0:04:14.8]} 20... Nf5 {[%clk 0:02:29.1]}
21. g4 {[%clk 0:03:59.7]} 21... Nd6 {[%clk 0:02:01]} 22. c3 {[%clk 0:03:49]}
22... Rb6 {[%clk 0:01:47.4]} 23. Ba4 {[%clk 0:03:47.7]} 23... f5 {[%clk
0:01:43.1]} 24. g5 {[%clk 0:03:45]} 24... h6 {[%clk 0:01:41.6]} 25. h4 {[%clk
0:03:42.9]} 25... hxg5 {[%clk 0:01:37.7]} 26. hxg5 {[%clk 0:03:42.1]} 26... Kf7
{[%clk 0:01:30.1]} 27. Rh3 {[%clk 0:03:41.1]} 27... Rh8 {[%clk 0:01:28.1]} 28.
Qf3 {[%clk 0:03:36.6]} 28... Ne4 {[%clk 0:01:16.5]} 29. Bc2 {[%clk 0:03:34.2]}
29... Nd2 {[%clk 0:00:59.3]} 30. Qg2 {[%clk 0:03:27.4]} 30... Rxh3 {[%clk
0:00:47.3]} 31. Qxh3 {[%clk 0:03:27.3]} 31... Ne4 {[%clk 0:00:45.5]} 32. Bxe4
{[%clk 0:03:25.1]} 32... fxe4 {[%clk 0:00:45.4]} 33. a4 {[%clk 0:03:24.6]} 33...
Rb8 {[%clk 0:00:42.2]} 34. a5 {[%clk 0:03:23]} 34... Qd7 {[%clk 0:00:36.2]} 35.
a6 {[%clk 0:03:21.4]} 35... Rh8 {[%clk 0:00:34.4]} 36. Qg2 {[%clk 0:03:20.7]}
36... e5 {[%clk 0:00:30.3]} 37. a7 {[%clk 0:03:17.4]} 37... Qc6 {[%clk
0:00:24.6]} 38. fxe5 {[%clk 0:03:15.7]} 38... Rh5 {[%clk 0:00:18]} 39. a8=Q
{[%clk 0:03:13]} 39... Qe6 {[%clk 0:00:12.4]} 40. Rf1+ {[%clk 0:03:10.4]} 40...
Ke7 {[%clk 0:00:10.8]} 41. b5 {[%clk 0:03:08.6]} 41... Bh6 {[%clk 0:00:08.8]}
42. Ba3+ {[%clk 0:03:07.3]} 42... Kd7 {[%clk 0:00:06.8]} 43. gxh6 {[%clk
0:03:06.3]} 43... Rh3 {[%clk 0:00:03.2]} 44. Qxh3 {[%clk 0:03:03]} 44... Qxh3
{[%clk 0:00:01.8]} 45. Rf7+ {[%clk 0:03:01.6]} 1-0

[Event "Live Chess"]
[Site "Chess.com"]
[Date "2024.06.02"]
[Round "-"]
[White "booktrunk"]
[Black "hapehansen"]
[Result "0-1"]
[WhiteElo "1480"]
[BlackElo "2255"]
[TimeControl "300"]
[EndTime "8:58:26 PDT"]
[Termination "hapehansen won by resignation"]

1. d4 {[%clk 0:04:54.2]} 1... Nf6 {[%clk 0:04:58.3]} 2. Bf4 {[%clk 0:04:48]}
2... e6 {[%clk 0:04:52.9]} 3. a3 {[%clk 0:04:44.3]} 3... d5 {[%clk 0:04:45.6]}
4. Nf3 {[%clk 0:04:43.3]} 4... Bd6 {[%clk 0:04:43.2]} 5. e3 {[%clk 0:04:41.2]}
5... c5 {[%clk 0:04:37]} 6. dxc5 {[%clk 0:04:39.2]} 6... Bxc5 {[%clk 0:04:34.2]}
7. Be2 {[%clk 0:04:36.4]} 7... Qb6 {[%clk 0:04:29]} 8. b4 {[%clk 0:04:32.6]}
8... Be7 {[%clk 0:04:26.2]} 9. O-O {[%clk 0:04:30.4]} 9... Nc6 {[%clk
0:04:23.8]} 10. Nd4 {[%clk 0:04:26.4]} 10... Nxd4 {[%clk 0:04:19.5]} 11. Qxd4
{[%clk 0:04:23.7]} 11... Qxd4 {[%clk 0:04:18]} 12. exd4 {[%clk 0:04:21.4]} 12...
Bd7 {[%clk 0:04:17.7]} 13. c3 {[%clk 0:04:19.6]} 13... O-O {[%clk 0:04:12.5]}
14. Rc1 {[%clk 0:04:17]} 14... Rfc8 {[%clk 0:04:10.1]} 15. Nd2 {[%clk
0:04:16.9]} 15... a5 {[%clk 0:03:56.3]} 16. Nb3 {[%clk 0:04:11.8]} 16... b6
{[%clk 0:03:49.3]} 17. bxa5 {[%clk 0:04:10.1]} 17... bxa5 {[%clk 0:03:47.5]} 18.
Nd2 {[%clk 0:04:07.6]} 18... Ne8 {[%clk 0:03:25.5]} 19. Rab1 {[%clk 0:04:06.2]}
19... Bxa3 {[%clk 0:03:19.9]} 20. Rc2 {[%clk 0:04:02.8]} 20... Be7 {[%clk
0:03:15.5]} 21. Bb5 {[%clk 0:03:57.8]} 21... Bxb5 {[%clk 0:03:11.7]} 22. Rxb5
{[%clk 0:03:55.7]} 22... a4 {[%clk 0:03:10.5]} 23. Ra2 {[%clk 0:03:52.4]} 23...
Rxc3 {[%clk 0:03:06.6]} 24. h3 {[%clk 0:03:50.3]} 24... h6 {[%clk 0:03:02.2]}
25. Nf3 {[%clk 0:03:48.7]} 25... Nd6 {[%clk 0:02:56.6]} 26. Bxd6 {[%clk
0:03:46.3]} 26... Bxd6 {[%clk 0:02:54.9]} 27. Ne5 {[%clk 0:03:46.2]} 27... Bxe5
{[%clk 0:02:53]} 28. dxe5 {[%clk 0:03:46.1]} 28... a3 {[%clk 0:02:49.3]} 29. f3
{[%clk 0:03:42.6]} 29... d4 {[%clk 0:02:43.7]} 30. Rb4 {[%clk 0:03:40]} 30...
Rd8 {[%clk 0:02:40.3]} 31. Rxd4 {[%clk 0:03:39.9]} 31... Rxd4 {[%clk 0:02:38.5]}
0-1

[Event "Live Chess"]
[Site "Chess.com"]
[Date "2024.06.02"]
[Round "-"]
[White "halfberg"]
[Black "TheSmoulderingMaster"]
[Result "1-0"]
[WhiteElo "1895"]
[BlackElo "1777"]
[TimeControl "300"]
[EndTime "8:58:40 PDT"]
[Termination "halfberg won by resignation"]

1. e4 {[%clk 0:04:56.6]} 1... c5 {[%clk 0:04:58.6]} 2. Nf3 {[%clk 0:04:55.2]}
2... d6 {[%clk 0:04:58.1]} 3. d4 {[%clk 0:04:54.7]} 3... cxd4 {[%clk 0:04:57.5]}
4. Nxd4 {[%clk 0:04:54.2]} 4... Nf6 {[%clk 0:04:56.1]} 5. Nc3 {[%clk 0:04:52.6]}
5... g6 {[%clk 0:04:55.4]} 6. Be2 {[%clk 0:04:51]} 6... Bg7 {[%clk 0:04:54.1]}
7. O-O {[%clk 0:04:49.9]} 7... O-O {[%clk 0:04:53.3]} 8. Be3 {[%clk 0:04:49]}
8... Nc6 {[%clk 0:04:45.8]} 9. Nb3 {[%clk 0:04:44.9]} 9... Be6 {[%clk
0:04:44.5]} 10. Qd2 {[%clk 0:04:43.8]} 10... Qd7 {[%clk 0:04:43.3]} 11. Bh6
{[%clk 0:04:42.1]} 11... Ng4 {[%clk 0:04:41.3]} 12. Bxg7 {[%clk 0:04:38.8]}
12... Kxg7 {[%clk 0:04:39.8]} 13. Bxg4 {[%clk 0:04:28.2]} 13... Bxg4 {[%clk
0:04:38.4]} 14. f3 {[%clk 0:04:26.3]} 14... Be6 {[%clk 0:04:36.1]} 15. Nd4
{[%clk 0:04:24.5]} 15... Nxd4 {[%clk 0:04:34.7]} 16. Qxd4+ {[%clk 0:04:23.6]}
16... Kg8 {[%clk 0:04:32.7]} 17. Kh1 {[%clk 0:04:22.8]} 17... a6 {[%clk
0:04:31.3]} 18. Ne2 {[%clk 0:04:17.8]} 18... Rac8 {[%clk 0:04:18.4]} 19. Rac1
{[%clk 0:04:11.3]} 19... Rc4 {[%clk 0:04:16.1]} 20. Qe3 {[%clk 0:04:08.6]} 20...
Rfc8 {[%clk 0:04:14.1]} 21. c3 {[%clk 0:04:06.6]} 21... b5 {[%clk 0:04:12.5]}
22. Nd4 {[%clk 0:03:54.8]} 22... b4 {[%clk 0:04:09]} 23. cxb4 {[%clk 0:03:49.8]}
23... Rxc1 {[%clk 0:04:04.4]} 24. Rxc1 {[%clk 0:03:48.8]} 24... Rxc1+ {[%clk
0:04:03.5]} 25. Qxc1 {[%clk 0:03:46.9]} 25... Qa7 {[%clk 0:03:57.6]} 26. Nxe6
{[%clk 0:03:33.8]} 26... fxe6 {[%clk 0:03:55.8]} 27. h3 {[%clk 0:03:27.8]} 27...
Qf2 {[%clk 0:03:51.9]} 28. a4 {[%clk 0:03:13.6]} 28... h5 {[%clk 0:03:46.3]} 29.
b5 {[%clk 0:03:11.5]} 29... axb5 {[%clk 0:03:44.2]} 30. axb5 {[%clk 0:03:10.8]}
30... Qg3 {[%clk 0:03:40.4]} 31. b6 {[%clk 0:03:07.3]} 31... d5 {[%clk
0:03:39.1]} 32. b7 {[%clk 0:03:05.5]} 32... Kf7 {[%clk 0:03:35.3]} 33. exd5
{[%clk 0:03:03.1]} 33... exd5 {[%clk 0:03:30.3]} 34. f4 {[%clk 0:02:55.5]} 34...
d4 {[%clk 0:03:24.5]} 35. b8=Q {[%clk 0:02:53.4]} 35... d3 {[%clk 0:03:21]} 36.
Qb3+ {[%clk 0:02:50.2]} 36... Kg7 {[%clk 0:03:18.5]} 37. Qcc3+ {[%clk
0:02:48.6]} 37... Kh6 {[%clk 0:03:17.4]} 38. Qxd3 {[%clk 0:02:48.1]} 38... Qxf4
{[%clk 0:03:16]} 39. Qe3 {[%clk 0:02:46.6]} 1-0

[Event "Live Chess"]
[Site "Chess.com"]
[Date "2024.06.02"]
[Round "-"]
[White "goldinspiredphoenix"]
[Black "OliWally08"]
[Result "1-0"]
[WhiteElo "1503"]
[BlackElo "1281"]
[TimeControl "300"]
[EndTime "8:58:44 PDT"]
[Termination "goldinspiredphoenix won by resignation"]

1. d4 {[%clk 0:04:57.8]} 1... Nf6 {[%clk 0:04:58.7]} 2. c4 {[%clk 0:04:56.1]}
2... e6 {[%clk 0:04:57.2]} 3. Nc3 {[%clk 0:04:54.5]} 3... Bb4 {[%clk 0:04:55.7]}
4. Bf4 {[%clk 0:04:52.6]} 4... c5 {[%clk 0:04:46.3]} 5. e3 {[%clk 0:04:51.1]}
5... Bxc3+ {[%clk 0:04:28.8]} 6. bxc3 {[%clk 0:04:48.5]} 6... Nc6 {[%clk
0:04:08.9]} 7. Nf3 {[%clk 0:04:45.3]} 7... O-O {[%clk 0:04:07]} 8. Qc2 {[%clk
0:04:42]} 8... Qa5 {[%clk 0:04:00.1]} 9. Bd6 {[%clk 0:04:39.1]} 9... Re8 {[%clk
0:03:56.5]} 10. Bxc5 {[%clk 0:04:31.7]} 10... b6 {[%clk 0:03:42.5]} 11. Bd6
{[%clk 0:04:30]} 11... Bb7 {[%clk 0:03:40.5]} 12. a3 {[%clk 0:04:27]} 12... Ne7
{[%clk 0:03:27]} 13. Be2 {[%clk 0:04:15]} 13... Ne4 {[%clk 0:03:23.8]} 14. Bb4
{[%clk 0:04:10.9]} 14... Qf5 {[%clk 0:03:16.5]} 15. O-O {[%clk 0:04:04.4]} 15...
Ng6 {[%clk 0:03:07]} 16. Bd3 {[%clk 0:03:43.6]} 16... a5 {[%clk 0:02:52.1]} 17.
Nd2 {[%clk 0:03:38.7]} 17... axb4 {[%clk 0:02:46.6]} 18. Nxe4 {[%clk 0:03:21.8]}
18... Qg4 {[%clk 0:02:31]} 19. cxb4 {[%clk 0:03:10.6]} 19... f5 {[%clk
0:02:28.8]} 20. Ng3 {[%clk 0:03:07.3]} 20... f4 {[%clk 0:02:19.5]} 21. Bxg6
{[%clk 0:03:02.2]} 21... fxg3 {[%clk 0:02:13.8]} 22. Bxh7+ {[%clk 0:02:47.5]}
22... Kh8 {[%clk 0:02:11.7]} 23. fxg3 {[%clk 0:02:38.9]} 23... Rf8 {[%clk
0:01:56.9]} 24. Bd3 {[%clk 0:02:28.9]} 24... Rf6 {[%clk 0:01:45.4]} 25. Rxf6
{[%clk 0:02:25]} 25... gxf6 {[%clk 0:01:45.3]} 26. Rf1 {[%clk 0:02:22.3]} 26...
f5 {[%clk 0:01:43.3]} 27. Qc3 {[%clk 0:02:17.8]} 27... Rg8 {[%clk 0:01:37.6]}
28. d5+ {[%clk 0:02:16]} 28... Rg7 {[%clk 0:01:35.7]} 29. dxe6 {[%clk
0:02:12.9]} 29... dxe6 {[%clk 0:01:32.7]} 30. Qf6 {[%clk 0:02:10]} 30... Qh5
{[%clk 0:01:03.9]} 31. Qxe6 {[%clk 0:01:39.1]} 31... Rg6 {[%clk 0:00:56.8]} 32.
Qe8+ {[%clk 0:01:32.6]} 32... Kg7 {[%clk 0:00:51.7]} 33. Bxf5 {[%clk 0:01:25]}
33... Qe2 {[%clk 0:00:43.9]} 34. Qxg6+ {[%clk 0:01:21.1]} 34... Kf8 {[%clk
0:00:42.7]} 35. Qd6+ {[%clk 0:01:17.3]} 35... Ke8 {[%clk 0:00:24.5]} 36. Qd7+
{[%clk 0:01:07.4]} 36... Kf8 {[%clk 0:00:14.8]} 37. Bg4+ {[%clk 0:01:03.1]}
37... Qxf1+ {[%clk 0:00:13.1]} 38. Kxf1 {[%clk 0:00:59.3]} 38... Bxg2+ {[%clk
0:00:13]} 39. Kxg2 {[%clk 0:00:58.5]} 1-0